bitfinex-derivatives/quotes_SOLF0:USTF0_20250603
["timestamp","ask_amount","ask_price","bid_price","bid_amount"]
[1748927619079,6.2782,159.19,159.18,5.88527328]
[1748927619473,6.2782,159.19,159.18,10.06931216]
[1748927619870,6.2782,159.19,159.18,4.22531827]
[1748927620072,6.2782,159.19,159.18,10.06653098]
[1748927621384,6.2782,159.19,159.18,5.8824921]
[1748927621681,6.2782,159.19,159.18,4.22531827]
[1748927622070,6.2782,159.19,159.18,0.04127939]
[1748927622685,10.46223888,159.19,159.18,0.04127939]
[1748927628189,6.2782,159.19,159.18,0.04127939]
[1748927630285,6.2776,159.21,159.18,4.22531827]
[1748927630485,6.2776,159.21,159.19,4.18403888]
[1748927630894,6.31946537,159.22,159.2,4.18403888]
[1748927631285,6.31946537,159.22,159.19,11.69307355]
[1748927631286,0.04236537,159.22,159.19,11.69307355]
[1748927631591,0.04236537,159.22,159.2,6.53055756]
[1748927631784,0.04236537,159.22,159.21,5.8410399]
[1748927632184,0.04236537,159.22,159.21,12.1184399]
[1748927632387,0.04236537,159.22,159.21,6.2774]
[1748927633494,0.04236537,159.22,159.21,5.83984361]
[1748927634683,6.31936537,159.22,159.21,5.83984361]
[1748927635892,6.2774,159.21,159.2,5.83984361]
[1748927636091,6.2774,159.21,159.18,45.28274066]
[1748927636896,0.04236537,159.22,159.2,5.84395458]
[1748927637902,6.2778,159.2,159.19,5.84395458]
[1748927639191,6.2778,159.2,159.19,5.84437059]
[1748927642397,6.2776,159.21,159.19,5.84437059]
[1748927642700,0.04236537,159.22,159.19,5.84437059]
[1748927643296,6.2774,159.21,159.19,5.84437059]
[1748927643493,0.04236537,159.22,159.19,5.84437059]
[1748927644998,6.2778,159.2,159.19,5.84437059]
[1748927645195,0.04236537,159.22,159.19,5.84437059]
[1748927645593,0.04236537,159.22,159.19,5.84108393]
[1748927645997,6.2776,159.21,159.19,5.84108393]
[1748927646697,6.2778,159.2,159.19,5.84108393]
[1748927653105,6.2778,159.2,159.18,41.22316384]
[1748927653405,6.2778,159.2,159.18,41.22380253]
[1748927654414,4.18080052,159.21,159.18,37.04300201]
[1748927654598,4.18080052,159.2,159.18,5.88300201]
[1748927654807,4.18080052,159.2,159.18,0.04127939]
[1748927655300,6.2782,159.19,159.18,0.04127939]
[1748927657008,10.45900052,159.19,159.18,0.04127939]
[1748927659502,10.45900052,159.19,159.18,7.939e-05]
[1748927659802,41.59900052,159.19,159.18,7.939e-05]
[1748927660001,35.32080052,159.19,159.13,5.84070914]
[1748927660200,4.18080052,159.15,159.13,5.84070914]
[1748927660395,4.18080052,159.15,159.12,5.84070914]
[1748927660596,6.2802,159.14,159.12,5.84070914]
[1748927661104,6.2806,159.13,159.12,5.84070914]
[1748927661499,10.46140052,159.13,159.12,5.84070914]
[1748927661701,6.2809,159.12,159.11,5.88133684]
[1748927661900,10.46170052,159.12,159.11,5.88133684]
[1748927662102,10.46170052,159.12,159.11,0.0406277]
[1748927663306,12.82356703,159.12,159.11,0.0406277]
[1748927668813,6.2809,159.12,159.11,0.0406277]
[1748927670211,0.04060747,159.15,159.11,0.0406277]
[1748927671711,6.2808,159.13,159.11,0.0406277]
[1748927676927,6.2803,159.14,159.11,0.0406277]
[1748927677127,6.2803,159.14,159.11,6.3219277]
[1748927680325,6.2806,159.13,159.11,0.0406277]
[1748927682440,6.2803,159.14,159.11,0.0406277]
[1748927683129,10.46480448,159.14,159.11,4.22513218]
[1748927683339,4.22511195,159.15,159.11,0.0406277]
[1748927683535,4.22511195,159.15,159.11,4.22513218]
[1748927684638,6.2802,159.14,159.11,10.50623218]
[1748927686342,0.04060747,159.15,159.11,0.0406277]
[1748927686530,0.04060747,159.15,159.14,4.18450448]
[1748927687132,0.04060747,159.15,159.14,10.46470448]
[1748927687841,0.04060747,159.15,159.13,4.18450448]
[1748927688033,0.04060747,159.15,159.12,6.37000448]
[1748927688240,6.32050747,159.15,159.12,10.46530448]
[1748927689239,6.32050747,159.15,159.12,6.2808]
[1748927690640,6.2802,159.14,159.11,43.28340568]
[1748927691746,6.32050747,159.15,159.12,6.2809]
[1748927691948,0.04060747,159.15,159.11,37.00220568]
[1748927692343,0.04060747,159.15,159.13,6.2804]
[1748927693446,0.04060747,159.15,159.13,12.10197798]
[1748927697051,0.04060747,159.15,159.14,5.82157798]
[1748927698250,31.14,159.25,159.14,12.35865843]
[1748927698553,6.53708045,159.23,159.15,31.14]
[1748927698739,6.2781,159.2,159.16,5.83416392]
[1748927698944,6.53708045,159.23,159.16,12.37124437]
[1748927699453,0.04636919,159.21,159.18,0.04797795]
[1748927699749,6.2779,159.2,159.18,0.04797795]
[1748927699950,6.2779,159.2,159.18,5.88200826]
[1748927701553,6.32386919,159.21,159.18,5.88200826]
[1748927701756,6.32386919,159.21,159.18,12.16060826]
[1748927701943,6.32386919,159.21,159.18,5.88347446]
[1748927702143,6.2781,159.2,159.18,5.88347446]
[1748927702354,0.04636919,159.21,159.18,5.88347446]
[1748927702549,6.58344964,159.21,159.18,5.88347446]
[1748927702752,6.2782,159.19,159.18,0.04797795]
[1748927703252,6.2782,159.19,159.18,5.88347446]
[1748927703448,6.32406919,159.21,159.18,5.88347446]
[1748927703654,0.04636919,159.21,159.18,5.88347446]
[1748927704361,0.04636919,159.21,159.2,6.2778]
[1748927704554,2.0029,159.27,159.21,6.53708045]
[1748927704755,31.12,159.28,159.19,44.75865778]
[1748927704756,31.12,159.28,159.23,6.53708045]
[1748927704970,127.06876343,159.3,159.23,37.65708045]
[1748927705259,127.06876343,159.3,159.23,43.93358045]
[1748927705463,0.04145713,159.28,159.25,6.58244562]
[1748927705850,6.31635713,159.28,159.25,6.58244562]
[1748927706054,0.04145713,159.28,159.25,6.58244562]
[1748927706262,6.31605713,159.28,159.25,6.58244562]
[1748927708068,0.04145713,159.28,159.25,6.58244562]
[1748927709061,6.2754,159.26,159.25,0.04536517]
[1748927712468,0.04145713,159.28,159.25,6.58244562]
[1748927713162,6.31645713,159.28,159.25,6.58244562]
[1748927713467,0.04145713,159.28,159.25,6.58244562]
[1748927713669,6.2754,159.26,159.25,6.58244562]
[1748927714863,6.2752,159.27,159.25,6.58244562]
[1748927718370,6.2754,159.26,159.25,6.58244562]
[1748927719061,6.2752,159.27,159.25,6.58244562]
[1748927720065,6.31615713,159.28,159.25,6.58244562]
[1748927720674,0.04145713,159.28,159.25,12.85794562]
[1748927721974,0.04145713,159.28,159.26,6.2754]
[1748927722668,0.04145713,159.28,159.27,6.275]
[1748927723169,0.04145713,159.28,159.27,12.81208045]
[1748927723375,0.04145713,159.28,159.27,43.91208045]
[1748927731276,0.04145713,159.28,159.27,37.375]
[1748927731479,31.1,159.37,159.31,6.53708045]
[1748927731778,6.2722,159.35,159.31,6.53708045]
[1748927731974,6.2722,159.35,159.31,43.91048045]
[1748927732174,31.1,159.37,159.31,37.63708045]
[1748927732376,6.2725,159.34,159.32,0.04805078]
[1748927732775,6.2719,159.35,159.32,0.04805078]
[1748927733176,0.04242929,159.36,159.32,12.85813123]
[1748927733477,0.04242929,159.36,159.32,0.04805078]
[1748927734177,6.31402929,159.36,159.32,6.32085078]
[1748927734785,0.04242929,159.36,159.33,12.80958045]
[1748927735283,0.04242929,159.36,159.34,6.272]
[1748927735779,0.04242929,159.36,159.33,6.53708045]
[1748927735984,6.2722,159.35,159.33,6.53708045]
[1748927736185,6.2722,159.35,159.32,0.04805078]
[1748927736877,0.04242929,159.36,159.32,0.04805078]
[1748927737078,6.57950974,159.36,159.32,0.04805078]
[1748927737278,6.2727,159.33,159.32,0.04805078]
[1748927745887,6.274,159.3,159.28,37.14253258]
[1748927746687,6.274,159.3,159.28,31.32]
[1748927747687,6.274,159.3,159.28,37.14253258]
[1748927748291,6.274,159.3,159.28,31.32]
[1748927748489,6.274,159.3,159.28,37.15119983]
[1748927750090,0.04223258,159.31,159.28,37.15119983]
[1748927750992,6.2741,159.3,159.28,37.15119983]
[1748927752191,6.2741,159.3,159.28,37.15095828]
[1748927752694,0.04223258,159.31,159.29,5.83095828]
[1748927753396,6.31593258,159.31,159.29,5.83095828]
[1748927756103,6.2739,159.3,159.29,5.82977202]
[1748927758698,6.31583258,159.31,159.29,5.82977202]
[1748927758897,0.04223258,159.31,159.29,5.82977202]
[1748927759295,0.04223258,159.31,159.28,39.12316127]
[1748927759600,0.04223258,159.31,159.28,39.0947845]
[1748927759800,0.04223258,159.31,159.3,5.83108838]
[1748927760097,0.04223258,159.31,159.3,5.83156711]
[1748927760292,6.31573258,159.31,159.3,5.83156711]
[1748927760691,0.04223258,159.31,159.3,5.83156711]
[1748927762602,0.04223258,159.31,159.3,19.88025161]
[1748927762800,37.85708045,159.39,159.3,7.7747845]
[1748927763102,37.85708045,159.39,159.32,6.273]
[1748927763103,6.272,159.35,159.32,6.273]
[1748927763301,6.272,159.35,159.32,12.10324712]
[1748927763501,37.85708045,159.39,159.32,11.66060726]
[1748927763696,6.53708045,159.37,159.32,11.66060726]
[1748927763902,0.04255124,159.36,159.33,0.0441638]
[1748927764303,6.2723,159.34,159.33,0.0441638]
[1748927764703,6.2739,159.3,159.28,7.7747845]
[1748927764908,6.53708045,159.32,159.27,7.7747845]
[1748927765206,6.2746,159.28,159.27,7.7747845]
[1748927765805,6.275,159.27,159.26,7.81495956]
[1748927766015,6.275,159.27,159.26,0.04017506]
[1748927766813,6.275,159.27,159.26,7.81495956]
[1748927767013,6.2748,159.28,159.26,7.81495956]
[1748927768113,6.31776967,159.29,159.26,7.81495956]
[1748927768806,6.31776967,159.29,159.26,14.09025956]
[1748927770111,6.31776967,159.29,159.26,7.81495956]
[1748927770609,6.2747,159.28,159.26,7.81495956]
[1748927770909,0.04336967,159.29,159.26,14.09025956]
[1748927771815,6.31786967,159.29,159.26,14.09025956]
[1748927772817,0.04336967,159.29,159.26,14.09025956]
[1748927773522,0.04336967,159.29,159.27,6.275]
[1748927773818,0.04336967,159.29,159.26,7.81495956]
[1748927774120,0.04336967,159.29,159.26,14.09015956]
[1748927776315,6.31766967,159.29,159.26,14.09015956]
[1748927777924,6.275,159.27,159.26,7.81495956]
[1748927778127,6.275,159.27,159.26,0.04017506]
[1748927778325,0.04336967,159.29,159.26,0.04017506]
[1748927778623,6.2749,159.28,159.26,0.04017506]
[1748927780226,6.275,159.27,159.26,0.04017506]
[1748927781825,0.04336967,159.29,159.26,0.04017506]
[1748927782219,6.2749,159.28,159.26,0.04017506]
[1748927782420,0.04336967,159.29,159.26,0.04017506]
[1748927783025,6.58045012,159.29,159.26,0.04017506]
[1748927783719,6.275,159.27,159.26,0.04017506]
[1748927787529,6.275,159.27,159.26,0.00605889]
[1748927789130,12.81208045,159.27,159.26,0.00605889]
[1748927793926,44.07208045,159.27,159.26,0.00605889]
[1748927794137,6.2766,159.23,159.22,5.8304097]
[1748927797129,37.4566,159.23,159.22,9.7e-06]
[1748927797530,6.277,159.22,159.21,0.00653451]
[1748927797836,12.81408045,159.22,159.21,0.00653451]
[1748927801041,6.277,159.22,159.21,0.00653451]
[1748927811944,6.2776,159.21,159.18,6.2785]
[1748927812340,41.84668045,159.23,159.17,6.2788]
[1748927813045,0.04246248,159.22,159.18,0.04680568]
[1748927813344,6.2775,159.21,159.18,0.04680568]
[1748927813545,0.04246248,159.22,159.18,0.04680568]
[1748927814440,6.2779,159.2,159.18,6.32540568]
[1748927815241,6.2776,159.21,159.18,6.32540568]
[1748927815441,6.2776,159.21,159.19,6.2782]
[1748927815636,0.04246248,159.22,159.19,6.2782]
[1748927815637,0.04246248,159.22,159.19,6.53708045]
[1748927816937,0.04246248,159.22,159.2,6.2774]
[1748927817437,0.04246248,159.22,159.19,6.53708045]
[1748927817947,0.04246248,159.22,159.2,6.2778]
[1748927819146,6.31946248,159.22,159.19,6.53708045]
[1748927819449,6.31946248,159.22,159.19,6.2781]
[1748927820244,0.04246248,159.22,159.2,6.2777]
[1748927820652,0.04246248,159.22,159.18,0.04680568]
[1748927820952,6.31956248,159.22,159.19,6.2779]
[1748927821144,0.04246248,159.22,159.19,6.2779]
[1748927821652,0.04246248,159.22,159.18,0.04680568]
[1748927823151,6.2775,159.21,159.18,0.04680568]
[1748927823349,0.04246248,159.22,159.18,0.04680568]
[1748927823852,6.2781,159.2,159.18,0.04680568]
[1748927825153,6.2774,159.21,159.18,6.32520568]
[1748927826052,0.04246248,159.22,159.18,0.04680568]
[1748927826554,6.2778,159.2,159.18,0.04680568]
[1748927826944,0.04246248,159.22,159.18,0.04680568]
[1748927827456,6.2782,159.19,159.18,0.04680568]
[1748927828653,12.81528045,159.19,159.18,0.00708618]
[1748927831757,6.2798,159.15,159.12,2.1559]
[1748927832353,6.2798,159.15,159.12,8.4368]
[1748927832658,6.2809,159.12,159.1,7.783758]
[1748927832958,6.2809,159.12,159.09,4.36702128]
[1748927833453,6.53708045,159.14,159.09,4.36702128]
[1748927834060,6.2809,159.13,159.09,10.64892128]
[1748927835054,0.04020462,159.15,159.09,4.36702128]
[1748927835261,0.04020462,159.15,159.1,6.53708045]
[1748927835558,6.2783,159.19,159.12,6.53708045]
[1748927835856,126.76477227,159.2,159.14,6.53708045]
[1748927836065,126.76477227,159.2,159.13,31.14]
[1748927836066,31.14,159.24,159.16,6.53708045]
[1748927836261,37.67708045,159.24,159.16,6.53708045]
[1748927836561,0.04402276,159.22,159.19,6.278]
[1748927836959,0.04402276,159.22,159.18,0.04299458]
[1748927837258,0.04402276,159.22,159.18,6.58007503]
[1748927837963,0.04402276,159.22,159.19,6.2779]
[1748927838354,0.04402276,159.22,159.18,6.58007503]
[1748927838551,6.32102276,159.22,159.18,6.58007503]
[1748927838957,6.32102276,159.22,159.19,6.2781]
[1748927839566,6.32102276,159.22,159.18,12.85857503]
[1748927840357,6.32102276,159.22,159.18,0.04299458]
[1748927840358,0.04402276,159.22,159.18,0.04299458]
[1748927842360,6.53708045,159.21,159.18,0.04299458]
[1748927842569,6.278,159.2,159.18,0.04299458]
[1748927849974,6.2782,159.19,159.18,0.04299458]
[1748927866581,12.81528045,159.19,159.18,0.00652843]
[1748927870285,6.2804,159.14,159.12,5.81062958]
[1748927871893,6.2804,159.14,159.11,45.34243486]
[1748927872990,37.67708045,159.22,159.13,6.53708045]
[1748927873286,37.67708045,159.22,159.14,5.80490784]
[1748927873487,6.2782,159.19,159.16,6.2793]
[1748927873999,6.32453465,159.19,159.16,6.32636506]
[1748927874893,6.2786,159.18,159.16,0.04706506]
[1748927875991,6.279,159.17,159.16,0.04706506]
[1748927877092,6.279,159.17,159.16,0.00715383]
[1748927881002,6.2805,159.13,159.12,5.81331796]
[1748927881297,37.67708045,159.18,159.09,5.81331796]
[1748927881298,6.53708045,159.14,159.09,5.81331796]
[1748927881696,6.2809,159.12,159.09,12.09541796]
[1748927881902,6.2809,159.12,159.09,5.81331796]
[1748927882090,6.32647414,159.12,159.09,5.85789847]
[1748927882697,6.2814,159.11,159.09,5.85789847]
[1748927882994,0.04557414,159.12,159.09,5.85789847]
[1748927883394,0.04557414,159.12,159.09,0.04458051]
[1748927883697,6.2816,159.11,159.09,0.04458051]
[1748927885002,6.2816,159.11,159.09,5.85922037]
[1748927886292,6.32677414,159.12,159.09,5.85922037]
[1748927887197,6.2813,159.11,159.09,5.85922037]
[1748927887605,0.04557414,159.12,159.09,12.14132037]
[1748927887996,0.04557414,159.12,159.09,6.32668051]
[1748927888196,6.32677414,159.12,159.09,12.13798318]
[1748927888398,6.32677414,159.12,159.09,6.32668051]
[1748927890307,0.04557414,159.12,159.09,0.04458051]
[1748927891305,6.2817,159.1,159.09,0.04458051]
[1748927896106,0.04557414,159.12,159.09,0.04458051]
[1748927896308,0.04557414,159.12,159.11,6.53708045]
[1748927896516,6.2796,159.16,159.13,12.81758045]
[1748927896706,31.14,159.2,159.13,6.53708045]
[1748927897507,0.04412917,159.18,159.15,0.04398073]
[1748927897712,0.04412917,159.18,159.15,0.00670198]
[1748927898007,0.04412917,159.18,159.15,6.54378243]
[1748927899112,0.04412917,159.18,159.15,5.81705627]
[1748927899309,6.279,159.17,159.15,0.00670198]
[1748927899511,0.04412917,159.18,159.15,0.00670198]
[1748927900016,6.32272917,159.18,159.15,0.00670198]
[1748927900514,6.32272917,159.18,159.15,5.81109094]
[1748927901102,6.32272917,159.18,159.15,12.09059094]
[1748927901609,6.279,159.17,159.15,5.81109094]
[1748927901909,0.04412917,159.18,159.15,5.81109094]
[1748927902703,6.32302917,159.18,159.15,5.81109094]
[1748927903116,6.32302917,159.18,159.15,0.00670198]
[1748927903309,0.04412917,159.18,159.15,0.00670198]
[1748927903920,6.2793,159.16,159.15,0.00670198]
[1748927915927,0.04412917,159.18,159.15,0.00670198]
[1748927916221,0.04412917,159.18,159.16,12.35000177]
[1748927916620,0.04412917,159.18,159.16,18.62930177]
[1748927916925,0.04412917,159.18,159.17,5.81292132]
[1748927917319,0.04412917,159.18,159.17,6.2789]
[1748927917519,0.04412917,159.18,159.17,12.09182132]
[1748927918927,0.04412917,159.18,159.17,5.80987397]
[1748927919725,0.04412917,159.18,159.16,5.80987397]
[1748927919930,6.279,159.17,159.15,5.81657595]
[1748927922830,6.32282917,159.18,159.15,5.81629638]
[1748927926725,6.32282917,159.18,159.15,5.8112908]
[1748927928130,6.2793,159.16,159.15,5.8112908]
[1748927928431,6.2793,159.16,159.15,0.00670198]
[1748927937728,6.32302917,159.18,159.15,0.00670198]
[1748927937929,0.04412917,159.18,159.15,5.82242312]
[1748927938132,0.04412917,159.18,159.16,5.81572114]
[1748927938434,0.04412917,159.18,159.16,12.35648023]
[1748927938638,0.04412917,159.18,159.17,6.2789]
[1748927938830,0.04412917,159.18,159.17,12.09829978]
[1748927939333,0.04412917,159.18,159.17,6.2789]
[1748927941330,0.04412917,159.18,159.17,14.062658]
[1748927941832,0.04412917,159.18,159.17,7.76375801]
[1748927942038,0.04412917,159.18,159.16,7.76375801]
[1748927942334,6.32282917,159.18,159.16,7.76375801]
[1748927942837,0.04412917,159.18,159.16,7.76375801]
[1748927943926,0.04412917,159.18,159.15,37.66378243]
[1748927943927,0.04412917,159.18,159.17,7.76375801]
[1748927944140,0.04412917,159.18,159.17,6.2789]
[1748927944336,0.04412917,159.18,159.17,20.58212672]
[1748927944532,171.6441046,159.25,159.17,6.53708045]
[1748927944533,165.10702415,159.25,159.17,6.53708045]
[1748927944841,165.10702415,159.25,159.19,14.04286798]
[1748927945041,6.277,159.22,159.21,5.82372598]
[1748927945936,6.2774,159.21,159.2,0.04735094]
[1748927946238,6.53708045,159.22,159.16,7.76496798]
[1748927946438,6.278,159.2,159.16,14.04426798]
[1748927946633,6.53708045,159.22,159.16,7.76496798]
[1748927947044,6.2785,159.19,159.15,45.16446798]
[1748927947337,6.2785,159.19,159.15,45.21036694]
[1748927947338,0.04642858,159.19,159.15,45.21036694]
[1748927947734,6.2788,159.18,159.15,45.21036694]
[1748927948939,0.04642858,159.19,159.15,38.93086694]
[1748927949134,0.04642858,159.19,159.15,31.16589896]
[1748927949640,6.2793,159.16,159.15,38.93086694]
[1748927950631,6.2793,159.16,159.15,7.81086694]
[1748927950830,6.2793,159.16,159.15,0.04589896]
[1748927955740,12.81638045,159.16,159.15,0.0008266]
[1748927957038,12.81638045,159.16,159.1,7.76496798]
[1748927957039,6.2813,159.11,159.1,7.76496798]
[1748927957240,12.81838045,159.11,159.1,7.76496798]
[1748927957439,6.2821,159.09,159.07,7.76496798]
[1748927957644,6.53708045,159.11,159.06,7.76496798]
[1748927958045,0.04729514,159.1,159.07,0.03979752]
[1748927959342,6.2821,159.09,159.07,0.03979752]
[1748927964345,0.04729514,159.1,159.07,0.03979752]
[1748927967256,6.32919514,159.1,159.07,0.03979752]
[1748927968154,6.2822,159.09,159.07,0.03979752]
[1748927968452,0.04729514,159.1,159.07,0.03979752]
[1748927968847,6.2825,159.08,159.07,0.03979752]
[1748927973060,6.2825,159.08,159.07,9.752e-05]
[1748927973358,39.4934,159.08,158.99,31.12]
[1748927973559,6.53708045,159.03,158.99,31.12]
[1748927974055,6.2851,159.02,158.99,31.12]
[1748927974363,6.3262525,159.02,158.99,31.16556134]
[1748927975160,6.3262525,159.02,158.99,37.45126134]
[1748927976562,6.2853,159.01,158.99,31.16556134]
[1748927976760,6.2853,159.01,158.99,0.04556134]
[1748927977663,6.3261525,159.02,158.99,0.04556134]
[1748927979567,6.2853,159.01,158.99,0.04556134]
[1748927981965,6.2856,159.0,158.99,0.04556134]
[1748927984772,0.0411525,159.02,158.99,0.04556134]
[1748927985071,6.53708045,159.01,158.99,0.04556134]
[1748927985468,6.53708045,159.01,158.99,0.00821416]
[1748927986076,6.2856,159.0,158.99,0.00821416]
[1748927995576,6.2877,158.95,158.93,31.14]
[1748927996576,6.33434702,158.96,158.93,37.4283]
[1748927999876,6.2876,158.95,158.93,37.4283]
[1748928000275,0.04694702,158.96,158.93,37.4283]
[1748928000476,6.33444702,158.96,158.93,37.4283]
[1748928001175,0.04694702,158.96,158.93,31.14]
[1748928001572,6.2876,158.95,158.93,31.14]
[1748928003680,6.288,158.94,158.93,31.14]
[1748928004780,6.2878,158.95,158.93,31.14]
[1748928005285,6.288,158.94,158.93,31.14]
[1748928005581,6.58402747,158.96,158.92,0.04656102]
[1748928006386,6.2884,158.93,158.92,0.04656102]
[1748928012086,6.2884,158.93,158.9,573.96]
[1748928012289,6.2889,158.92,158.9,569.2905254]
[1748928012583,6.2889,158.92,158.9,31.16]
[1748928013390,6.2892,158.91,158.9,31.16]
[1748928015190,0.0437256,158.93,158.9,31.16]
[1748928015191,6.2888,158.92,158.9,31.16]
[1748928016690,6.3321256,158.93,158.9,31.16]
[1748928017089,6.3321256,158.93,158.9,37.4494]
[1748928017299,6.53708045,158.92,158.89,0.04016744]
[1748928017791,6.2896,158.9,158.89,0.04016744]
[1748928019586,12.82668045,158.9,158.89,0.04016744]
[1748928019786,12.82668045,158.9,158.89,0.00556437]
[1748928021000,6.2906,158.88,158.85,37.4514]
[1748928021997,6.33567564,158.88,158.85,37.49814846]
[1748928023396,6.2909,158.87,158.85,31.20674846]
[1748928023595,0.04507564,158.88,158.85,31.20674846]
[1748928024194,0.04507564,158.88,158.87,6.2908]
[1748928027204,0.04507564,158.88,158.87,12.12267839]
[1748928027502,0.04507564,158.88,158.87,12.12526156]
[1748928028000,0.04507564,158.88,158.87,6.2908]
[1748928030602,6.2879,158.95,158.92,6.2885]
[1748928031099,6.2874,158.96,158.93,6.2884]
[1748928031407,6.53708045,158.98,158.93,6.2884]
[1748928031699,0.04565169,158.97,158.94,0.04576121]
[1748928032005,6.2877,158.95,158.94,0.04576121]
[1748928034708,6.2874,158.96,158.94,0.04576121]
[1748928038015,6.33265169,158.97,158.94,6.33366121]
[1748928038609,6.33265169,158.97,158.94,12.17103697]
[1748928039120,6.33265169,158.97,158.94,6.33366121]
[1748928039704,6.33265169,158.97,158.94,0.04576121]
[1748928043112,6.2873,158.96,158.94,0.04576121]
[1748928044016,6.2877,158.95,158.94,0.04576121]
[1748928053619,12.82478045,158.95,158.94,6.121e-05]
[1748928053924,6.2893,158.91,158.9,5.84110415]
[1748928054134,6.53708045,158.93,158.89,5.84110415]
[1748928054319,6.53708045,158.93,158.88,36.98110415]
[1748928054719,6.29,158.89,158.88,42.82604261]
[1748928055219,6.29,158.89,158.88,36.98493846]
[1748928055418,6.29,158.89,158.88,31.14]
[1748928057325,6.2904,158.88,158.87,0.04801555]
[1748928063925,6.2904,158.88,158.87,0.00940714]
[1748928069247,37.7391761,158.9,158.87,0.00940714]
[1748928071147,6.2904,158.88,158.87,0.00940714]
[1748928080248,12.82748045,158.88,158.87,0.00940714]
[1748928082843,6.2924,158.84,158.82,31.16]
[1748928083557,6.2924,158.83,158.82,31.16]
[1748928085153,6.2929,158.82,158.79,12.12361279]
[1748928085458,6.2929,158.82,158.8,31.16]
[1748928085954,6.2929,158.82,158.79,12.12361279]
[1748928086158,6.2929,158.82,158.8,31.16]
[1748928086547,6.2929,158.82,158.79,12.12361279]
[1748928086756,6.2929,158.82,158.8,31.16]
[1748928087854,6.2932,158.81,158.8,31.16]
[1748928089157,6.57973773,158.84,158.8,31.16]
[1748928089158,6.2929,158.82,158.8,31.16]
[1748928089349,0.04265728,158.84,158.8,31.16]
[1748928090458,6.2932,158.81,158.8,31.16]
[1748928091046,6.294,158.79,158.78,543.34]
[1748928091246,0.04541048,158.8,158.78,549.17990911]
[1748928091455,0.04541048,158.8,158.77,31.16]
[1748928091851,0.04541048,158.8,158.78,5.84274031]
[1748928092051,6.33921048,158.8,158.78,5.84274031]
[1748928092256,6.33921048,158.8,158.77,37.4548]
[1748928092456,6.33921048,158.8,158.77,43.29788917]
[1748928092854,6.33921048,158.8,158.78,5.84308917]
[1748928093062,0.04541048,158.8,158.78,5.84308917]
[1748928093359,0.04541048,158.8,158.78,12.38016962]
[1748928093555,31.16,158.86,158.78,12.38016962]
[1748928093752,8.54238045,158.87,158.78,12.38016962]
[1748928094062,8.54238045,158.87,158.78,6.53708045]
[1748928094266,6.2923,158.84,158.79,5.84616088]
[1748928094765,6.2923,158.84,158.8,0.04664284]
[1748928094766,0.04263138,158.83,158.8,0.04664284]
[1748928094959,0.04263138,158.83,158.8,6.33994284]
[1748928095569,0.04263138,158.83,158.8,12.18610372]
[1748928095757,0.04263138,158.83,158.81,6.2932]
[1748928096568,6.33513138,158.83,158.8,12.18630372]
[1748928098055,6.2929,158.82,158.8,5.89280372]
[1748928098568,6.33533138,158.83,158.8,12.18630372]
[1748928098968,6.33533138,158.83,158.81,5.84616088]
[1748928101265,6.33533138,158.83,158.81,12.13936088]
[1748928101470,6.33533138,158.83,158.82,5.84616088]
[1748928102168,0.04263138,158.83,158.82,5.84616088]
[1748928102365,0.04263138,158.83,158.82,12.13896088]
[1748928103471,0.04263138,158.83,158.82,5.84616088]
[1748928103971,0.04263138,158.83,158.82,12.13896088]
[1748928105773,0.04263138,158.83,158.82,12.15551273]
[1748928106572,6.2906,158.88,158.85,6.2914]
[1748928106775,6.2906,158.88,158.85,12.15411273]
[1748928107277,6.2906,158.88,158.85,16.35240669]
[1748928107669,6.3371661,158.88,158.85,16.3947969]
[1748928108367,0.0465661,158.88,158.85,5.90510294]
[1748928108574,0.0465661,158.88,158.87,10.06100669]
[1748928108969,0.0465661,158.88,158.87,16.35180669]
[1748928109171,0.0465661,158.88,158.87,6.2908]
[1748928116786,0.0465661,158.88,158.86,7.79078556]
[1748928117176,0.0465661,158.88,158.87,5.83893952]
[1748928117375,0.0465661,158.88,158.85,31.20239021]
[1748928117678,0.0465661,158.88,158.86,5.840067]
[1748928117878,0.0465661,158.88,158.86,12.131067]
[1748928118074,0.0465661,158.88,158.87,5.840067]
[1748928119083,0.0465661,158.88,158.87,12.130867]
[1748928120683,0.0465661,158.88,158.87,6.2908]
[1748928120882,0.0465661,158.88,158.87,12.12647401]
[1748928121078,0.0465661,158.88,158.87,5.83567401]
[1748928122687,0.0465661,158.88,158.86,12.12677401]
[1748928123491,0.0465661,158.88,158.86,6.2911]
[1748928123692,0.0465661,158.88,158.86,12.1256501]
[1748928123991,0.0465661,158.88,158.87,6.2908]
[1748928124189,42.00048849,158.95,158.87,12.39183859]